bitfinex-derivatives/quotes_SOLF0:USTF0_20241010
["timestamp","ask_amount","ask_price","bid_price","bid_amount"]
[1728564591130,0.12502,139.13,139.11,3.5979]
[1728564592230,0.12502,139.13,139.09,7.12]
[1728564594235,0.12502,139.13,139.12,3.5977]
[1728564595728,0.12502,139.13,139.09,3.5984]
[1728564595935,0.12502,139.13,139.08,7.12]
[1728564596328,0.12502,139.13,139.1,3.5981]
[1728564596526,0.12502,139.13,139.08,7.12]
[1728564597535,0.12502,139.13,139.09,3.5984]
[1728564597734,3.5981,139.11,139.07,7.12]
[1728564598034,0.12502,139.13,139.07,3.5989]
[1728564598238,1.3468,139.12,139.07,3.5989]
[1728564598432,3.5981,139.11,139.07,3.5989]
[1728564598734,1.3468,139.12,139.07,3.5989]
[1728564599340,28.9368,139.12,139.05,3.5994]
[1728564599535,36.0368,139.12,139.05,3.5994]
[1728564600236,3.5987,139.09,139.04,7.1]
[1728564600435,36.0368,139.12,139.04,7.1]
[1728564601033,1.3468,139.12,139.04,7.1]
[1728564601235,1.3468,139.12,139.05,27.59]
[1728564601432,1.3468,139.12,139.06,3.5992]
[1728564601636,28.9368,139.12,139.06,3.5992]
[1728564602029,27.59,139.1,139.0,28.9133]
[1728564602236,27.59,139.1,139.01,7.22502]
[1728564602541,27.59,139.1,139.04,3.5997]
[1728564602542,3.599,139.08,139.04,3.5997]
[1728564602839,10.65679981,139.11,139.01,0.12502]
[1728564603135,28.9209,139.09,139.01,0.12502]
[1728564603338,27.59,139.07,139.01,0.12502]
[1728564603536,1.3675,139.06,139.01,0.12502]
[1728564604432,3.6,139.04,139.01,3.72542]
[1728564604629,1.3675,139.06,139.01,0.12502]
[1728564605146,27.59,139.04,139.01,0.12502]
[1728564605432,27.59,139.02,138.95,0.12502]
[1728564605636,3.601,139.0,138.97,3.6015]
[1728564605942,27.59,139.02,138.95,7.22502]
[1728564606141,27.59,139.02,138.95,0.12502]
[1728564606334,27.59,139.0,138.95,0.12502]
[1728564606534,1.3728,138.99,138.95,0.12502]
[1728564607238,3.6018,138.97,138.95,0.12502]
[1728564607439,27.59,138.98,138.95,0.12502]
[1728564607638,3.6019,138.96,138.95,0.12502]
[1728564607830,27.59,138.98,138.9,3.6032]
[1728564608235,8.4728,138.99,138.89,7.22502]
[1728564608439,8.4728,138.99,138.89,34.81502]
[1728564608943,27.59,138.98,138.89,0.12502]
[1728564609333,27.59,138.95,138.89,3.72862]
[1728564609532,27.59,138.95,138.89,0.12502]
[1728564610134,34.69,138.95,138.89,0.12502]
[1728564610344,1.4358,138.94,138.89,0.12502]
[1728564610740,27.59,138.93,138.89,0.12502]
[1728564610934,1.4358,138.94,138.89,0.12502]
[1728564611230,3.6032,138.92,138.89,0.12502]
[1728564611429,27.59,138.92,138.89,0.12502]
[1728564611629,3.6034,138.9,138.89,0.12502]
[1728564612234,12.1383,138.94,138.91,3.6032]
[1728564612438,8.5358,138.94,138.89,0.12502]
[1728564612743,3.6029,138.93,138.89,3.72852]
[1728564613241,36.1258,138.94,138.89,0.12502]
[1728564613444,3.6034,138.9,138.89,0.12502]
[1728564614240,3.6032,138.91,138.89,0.12502]
[1728564614539,1.4358,138.94,138.89,0.12502]
[1728564614746,1.4358,138.94,138.9,3.6034]
[1728564614942,3.6031,138.92,138.89,0.12502]
[1728564615140,1.4358,138.94,138.89,0.12502]
[1728564615141,29.0258,138.94,138.89,0.12502]
[1728564616040,3.6033,138.91,138.89,0.12502]
[1728564616243,29.0258,138.94,138.89,0.12502]
[1728564616643,27.59,138.92,138.83,7.22502]
[1728564616835,7.1,138.91,138.83,3.73022]
[1728564617047,27.59,138.89,138.83,3.73022]
[1728564617239,1.4433,138.88,138.83,0.12502]
[1728564617442,27.59,138.87,138.83,0.12502]
[1728564617640,3.6058,138.81,138.79,0.12518]
[1728564617840,27.59,138.84,138.79,0.12518]
[1728564619045,3.6059,138.81,138.79,0.12518]
[1728564619238,27.59,138.84,138.79,0.12518]
[1728564619642,3.606,138.8,138.79,0.12518]
[1728564620144,27.59,138.8,138.77,0.12502]
[1728564620338,27.59,138.8,138.72,3.6081]
[1728564620545,27.59,138.77,138.71,0.12502]
[1728564620740,31.1969,138.77,138.73,3.6077]
[1728564620945,3.6069,138.77,138.71,0.12502]
[1728564621142,7.1,138.78,138.71,27.71502]
[1728564621450,1.4481,138.79,138.71,0.12502]
[1728564622542,3.607,138.77,138.73,3.6076]
[1728564623642,3.6071,138.76,138.73,3.6076]
[1728564624349,1.4481,138.79,138.72,3.6081]
[1728564624350,3.6073,138.75,138.72,3.6081]
[1728564624556,27.59,138.74,138.71,0.12502]
[1728564624753,27.59,138.72,138.65,3.73482]
[1728564625050,27.59,138.72,138.65,0.12502]
[1728564625350,27.59,138.69,138.65,0.12502]
[1728564625548,3.6096,138.67,138.65,0.12502]
[1728564625855,34.71,138.69,138.65,0.12502]
[1728564626053,3.6092,138.68,138.65,0.12502]
[1728564626352,34.71,138.69,138.65,0.12502]
[1728564626560,3.6093,138.68,138.65,0.12502]
[1728564626748,29.0286,138.71,138.65,0.12502]
[1728564626949,7.12,138.7,138.65,0.12502]
[1728564627147,10.7288,138.7,138.66,3.6097]
[1728564627361,3.6088,138.7,138.66,3.6097]
[1728564627848,3.6089,138.69,138.65,3.73482]
[1728564628555,3.6087,138.7,138.66,3.6096]
[1728564629948,3.6082,138.72,138.65,0.12502]
[1728564630347,8.5505,138.73,138.65,0.12502]
[1728564630861,27.59,138.71,138.65,0.12502]
[1728564631061,3.6092,138.68,138.65,0.12502]
[1728564631358,27.59,138.71,138.65,0.12502]
[1728564631560,3.609,138.69,138.66,3.6096]
[1728564631752,27.59,138.71,138.65,0.12502]
[1728564632256,29.0353,138.74,138.65,0.12502]
[1728564632452,1.4453,138.74,138.65,0.12502]
[1728564632653,5.0556,138.76,138.72,3.6079]
[1728564632855,3.6072,138.76,138.72,3.6079]
[1728564633859,3.6074,138.75,138.68,9.8941]
[1728564634261,0.12502,138.77,138.69,27.59]
[1728564634559,0.12502,138.77,138.68,9.8941]
[1728564634560,0.12502,138.77,138.74,27.59]
[1728564634759,0.12502,138.77,138.76,3.6071]
[1728564635948,1.3532,138.84,138.81,3.6056]
[1728564636148,4.9582,138.84,138.74,34.69]
[1728564636348,1.3532,138.84,138.74,34.69]
[1728564637160,7.1,138.86,138.76,27.59]
[1728564637454,3.6052,138.84,138.8,3.6059]
[1728564638059,3.6052,138.84,138.81,3.6058]
[1728564638455,7.1,138.86,138.76,27.59]
[1728564638655,7.1,138.86,138.78,3.6064]
[1728564638855,27.59,138.84,138.74,27.59]
[1728564639055,27.59,138.84,138.75,7.1]
[1728564639256,27.59,138.84,138.77,3.6067]
[1728564639557,34.69,138.82,138.72,7.1]
[1728564639860,3.6063,138.79,138.75,3.6072]
[1728564640153,34.69,138.82,138.72,7.1]
[1728564640354,3.6063,138.79,138.76,3.607]
[1728564640659,34.69,138.82,138.72,34.69]
[1728564641154,34.69,138.82,138.73,1.3244]
[1728564641359,3.6062,138.8,138.77,3.6068]
[1728564641660,3.6062,138.8,138.73,1.3244]
[1728564642050,34.69,138.82,138.77,3.6067]
[1728564642256,0.12502,138.83,138.74,27.59]
[1728564642555,0.12502,138.83,138.75,1.4223]
[1728564642861,0.12502,138.83,138.76,7.1]
[1728564644265,3.73042,138.83,138.76,7.1]
[1728564644555,0.12502,138.83,138.76,7.1]
[1728564644760,0.12502,138.83,138.81,3.6058]
[1728564645356,3.73032,138.83,138.8,3.6059]
[1728564645558,0.12502,138.83,138.76,34.69]
[1728564646263,0.12502,138.83,138.8,3.6059]
[1728564646855,0.12502,138.83,138.76,7.1]
[1728564648258,3.6058,138.81,138.77,3.6068]
[1728564648464,0.12502,138.83,138.77,3.6068]
[1728564648863,3.6061,138.8,138.77,3.6068]
[1728564650376,3.6061,138.8,138.76,7.1]
[1728564650377,3.6058,138.82,138.78,3.6064]
[1728564650667,0.12502,138.83,138.76,7.1]
[1728564651263,3.6058,138.81,138.77,3.6067]
[1728564651661,3.6058,138.81,138.76,7.1]
[1728564651964,0.12502,138.83,138.76,7.1]
[1728564652163,0.12502,138.83,138.76,34.69]
[1728564652472,3.606,138.81,138.76,7.1]
[1728564653482,3.6061,138.8,138.76,7.1]
[1728564653662,27.59,138.82,138.75,10.7072]
[1728564653858,27.59,138.82,138.75,7.1]
[1728564654262,3.6064,138.79,138.76,3.6069]
[1728564654462,3.6064,138.79,138.75,7.1]
[1728564654463,27.59,138.82,138.75,7.1]
[1728564654673,0.12502,138.83,138.75,7.1]
[1728564655366,0.12502,138.83,138.73,8.4244]
[1728564655969,7.1,138.82,138.73,1.3244]
[1728564656163,3.6072,138.76,138.73,3.6077]
[1728564656467,27.59,138.8,138.71,1.53992]
[1728564656468,27.59,138.8,138.71,8.63992]
[1728564656676,3.6075,138.75,138.71,0.12502]
[1728564656974,27.59,138.78,138.71,0.12502]
[1728564657174,2.7487,138.79,138.71,0.12502]
[1728564657865,3.6076,138.75,138.72,3.608]
[1728564658971,3.6072,138.76,138.73,3.6078]
[1728564659368,3.6072,138.76,138.71,0.12502]
[1728564659563,3.6067,138.78,138.71,0.12502]
[1728564660376,1.3768,138.81,138.72,27.59]
[1728564660670,3.6061,138.8,138.73,1.4616]
[1728564660873,7.08,138.82,138.76,3.607]
[1728564661269,7.08,138.82,138.74,7.08]
[1728564661872,1.4375,138.81,138.74,7.08]
[1728564662375,7.08,138.82,138.74,7.08]
[1728564662770,27.59,138.8,138.71,7.20502]
[1728564662970,7.08,138.82,138.71,0.12502]
[1728564662971,27.59,138.78,138.71,0.12502]
[1728564663172,27.59,138.76,138.71,0.12502]
[1728564663372,27.59,138.74,138.71,0.12502]
[1728564663576,3.6081,138.72,138.71,0.12502]
[1728564664374,1.3617,138.73,138.71,0.12502]
[1728564665482,3.6081,138.72,138.71,0.12502]
[1728564666587,4.9697,138.73,138.71,0.12502]
[1728564666790,1.3617,138.73,138.71,0.12502]
[1728564666982,8.4332,138.75,138.71,0.12502]
[1728564667281,1.3532,138.75,138.71,0.12502]
[1728564667485,4.9607,138.75,138.72,3.6079]
[1728564667688,1.3806,138.76,138.71,0.12502]
[1728564669385,3.6076,138.75,138.71,3.73322]
[1728564669578,3.6076,138.75,138.71,0.12502]
[1728564669779,1.3806,138.76,138.71,0.12502]
[1728564669994,1.419,138.8,138.71,0.12502]
[1728564670691,3.6067,138.78,138.75,3.6072]
[1728564670893,2.7453,138.82,138.71,27.71502]
[1728564672091,3.6061,138.8,138.77,3.6067]
[1728564672488,1.4034,138.82,138.73,27.59]
[1728564673095,3.6058,138.81,138.78,3.6064]
[1728564673287,1.4034,138.82,138.71,27.71502]
[1728564673687,3.6066,138.78,138.75,3.6073]
[1728564673895,1.4034,138.82,138.71,27.71502]
[1728564675195,1.4034,138.82,138.8,3.6059]
[1728564675393,1.4034,138.82,138.72,7.2163]
[1728564675596,1.4034,138.82,138.71,27.71502]
[1728564675899,3.6065,138.79,138.71,27.71502]
[1728564676301,1.4034,138.82,138.71,27.71502]
[1728564676487,3.6067,138.78,138.71,27.71502]
[1728564676890,3.6071,138.76,138.73,3.6077]
[1728564677194,27.59,138.8,138.71,0.12502]
[1728564677396,3.6069,138.77,138.74,3.6074]
[1728564678395,3.6064,138.79,138.71,27.71502]
[1728564678602,28.9934,138.82,138.71,27.71502]
[1728564678895,28.9934,138.82,138.75,3.6072]
[1728564679495,27.59,138.8,138.71,0.12502]
[1728564679896,3.6073,138.76,138.71,0.12502]
[1728564680202,27.59,138.8,138.71,0.12502]
[1728564680398,1.4329,138.79,138.71,0.12502]
[1728564680594,3.6074,138.75,138.72,3.608]
[1728564680910,27.59,138.78,138.71,0.12502]
[1728564681096,1.3407,138.77,138.71,0.12502]
[1728564681303,3.6077,138.74,138.71,3.73322]
[1728564681696,1.3205,138.76,138.71,0.12502]
[1728564681897,3.6081,138.72,138.71,0.12502]
[1728564682503,17.31,138.74,138.71,0.12502]
[1728564682706,17.31,138.75,138.71,0.12502]
[1728564683203,20.9175,138.75,138.72,3.608]
[1728564683603,3.6075,138.75,138.72,3.608]
[1728564684105,1.3205,138.76,138.73,3.6078]
[1728564684106,4.9277,138.76,138.73,3.6078]
[1728564684307,1.3205,138.76,138.71,0.12502]
[1728564685015,3.6074,138.75,138.72,3.6079]
[1728564685307,1.3205,138.76,138.71,0.12502]
[1728564685500,3.6069,138.77,138.74,3.6074]
[1728564685703,3.6069,138.77,138.71,0.12502]
[1728564685904,3.6072,138.76,138.73,3.6078]
[1728564686102,30.4807,138.79,138.71,0.12502]
[1728564686903,3.6068,138.77,138.74,3.6075]
[1728564687311,3.6068,138.77,138.71,0.12502]
[1728564687312,4.9342,138.79,138.76,3.6069]
[1728564687613,0.12502,138.83,138.73,27.72]
[1728564687811,1.45282,138.83,138.73,27.72]
[1728564688002,1.45282,138.83,138.76,3.6069]
[1728564688197,27.72,138.81,138.71,0.12502]
[1728564688406,3.6069,138.77,138.74,3.6075]
[1728564688809,27.72,138.81,138.71,0.12502]
[1728564689212,3.607,138.77,138.71,0.12502]
[1728564689810,3.607,138.77,138.74,3.6075]
[1728564691310,3.6068,138.78,138.74,3.6076]
[1728564691511,27.72,138.81,138.74,3.6076]
[1728564691904,27.72,138.81,138.75,3.6073]
[1728564692308,27.72,138.81,138.71,0.12502]
[1728564692514,3.6065,138.79,138.71,0.12502]
[1728564693118,29.17282,138.83,138.71,0.12502]
[1728564693309,29.17282,138.83,138.75,27.72]
[1728564693310,1.45282,138.83,138.75,27.72]
[1728564693517,0.12502,138.83,138.77,27.72]
[1728564694416,0.12502,138.83,138.79,27.72]
[1728564694617,0.12502,138.83,138.82,3.6055]
[1728564695119,0.12502,138.83,138.79,27.72]
[1728564695322,0.12502,138.83,138.82,3.6055]
[1728564695839,0.12502,138.83,138.8,3.6059]
[1728564696117,0.12502,138.83,138.77,27.72]
[1728564696505,0.12502,138.83,138.82,3.6055]
[1728564697314,0.12502,138.83,138.8,3.6058]
[1728564697714,0.12502,138.83,138.77,27.72]
[1728564698114,0.12502,138.83,138.76,2.8238]
[1728564698309,3.6058,138.82,138.76,2.8238]
[1728564698508,3.6058,138.82,138.78,3.6064]
[1728564698713,0.12502,138.83,138.78,3.6064]
[1728564698909,0.12502,138.83,138.76,2.8238]
[1728564699625,3.6057,138.82,138.79,3.6061]
[1728564699819,0.12502,138.83,138.77,27.72]
[1728564700216,0.12502,138.83,138.8,3.6059]
[1728564700417,0.12502,138.83,138.77,27.72]
[1728564700918,0.12502,138.83,138.81,3.6056]
[1728564701125,0.12502,138.83,138.79,27.72]
[1728564701323,3.6047,138.86,138.83,3.6052]
[1728564701615,0.12502,138.89,138.79,27.72]
[1728564702119,3.6043,138.87,138.79,27.72]
[1728564702319,0.12502,138.89,138.79,27.72]
[1728564702620,3.6046,138.86,138.82,3.6055]
[1728564702826,0.12502,138.89,138.82,3.6055]
[1728564703218,3.6046,138.86,138.82,3.6055]
[1728564704729,0.12502,138.89,138.82,3.6055]
[1728564704730,3.6048,138.85,138.82,3.6055]
[1728564706320,0.12502,138.89,138.79,27.72]
[1728564706321,3.6046,138.86,138.79,27.72]
[1728564706520,0.12502,138.89,138.81,17.3]
[1728564706724,17.3,138.88,138.79,17.3]
[1728564707028,17.3,138.88,138.81,3.6056]
[1728564707725,3.6049,138.85,138.81,3.6056]
[1728564708226,3.6049,138.85,138.82,3.6055]
[1728564709527,0.12502,138.89,138.81,17.3]
[1728564710028,3.6049,138.85,138.82,3.6054]
[1728564710729,3.6049,138.85,138.83,3.6052]
[1728564710920,3.6049,138.85,138.81,17.3]
[1728564712030,3.6049,138.85,138.82,3.6054]
[1728564712624,3.6053,138.83,138.8,3.6059]
[1728564713426,17.3,138.88,138.8,3.6059]
[1728564713739,17.3,138.87,138.79,3.6062]
[1728564713925,2.7269,138.86,138.79,3.6062]
[1728564714119,2.7269,138.86,138.78,20.9064]
[1728564714329,17.3,138.85,138.78,3.6064]
[1728564714525,3.6059,138.81,138.78,3.6064]
[1728564715028,1.3226,138.84,138.77,0.12502]
[1728564715223,3.6054,138.83,138.78,17.3]
[1728564715627,1.3226,138.84,138.78,17.3]
[1728564715828,3.6055,138.82,138.79,3.6062]
[1728564716533,3.6054,138.83,138.8,3.606]
[1728564717121,3.6055,138.82,138.79,3.6062]
[1728564717321,1.3226,138.84,138.78,17.3]
[1728564717528,2.7269,138.86,138.8,17.3]
[1728564717729,2.7269,138.86,138.77,3.69028475]
[1728564717730,3.6049,138.85,138.81,17.3]
[1728564717928,1.3434,138.86,138.81,17.3]
[1728564718128,0.12502,138.89,138.81,17.3]
[1728564718324,0.12502,138.89,138.77,3.69028475]
[1728564718325,1.44452,138.89,138.83,17.3]
[1728564718530,0.12502,138.89,138.85,17.3]
[1728564718731,0.12502,138.89,138.87,3.6041]
[1728564719127,0.12502,138.89,138.85,17.3]
[1728564719439,0.12502,138.89,138.87,17.3]
[1728564719739,0.12502,138.89,138.88,20.904]
[1728564720444,1.3618,138.94,138.91,3.603]
[1728564720628,0.12502,138.95,138.89,27.69]
[1728564721132,0.12502,138.95,138.94,3.6024]
[1728564721324,0.12502,138.95,138.91,27.69]
[1728564721724,0.12502,138.95,138.89,27.69]
[1728564722238,0.12502,138.95,138.89,3.6035]
[1728564722535,0.12502,138.95,138.87,27.69]
[1728564722940,0.12502,138.95,138.88,3.6038]
[1728564723234,3.6038,138.89,138.84,1.3809]
[1728564723438,27.69,138.94,138.86,3.6043]
[1728564723936,0.12502,138.95,138.85,27.69]
[1728564724236,0.12502,138.95,138.87,27.69]
[1728564724436,0.12502,138.95,138.89,27.69]
[1728564724757,0.12502,138.95,138.91,27.69]
[1728564725132,0.12502,138.95,138.94,27.69]
[1728564725339,1.4393,139.02,138.94,27.69]
[1728564725539,1.4393,139.02,138.96,27.69]
[1728564726138,3.72582,139.01,138.97,3.6015]
[1728564726336,0.12502,139.01,138.94,27.69]
[1728564726731,3.72582,139.01,138.97,3.6016]
[1728564727036,3.72582,139.01,138.96,27.69]
[1728564727037,0.12502,139.01,138.96,27.69]
[1728564727236,3.601,139.0,138.96,3.6017]
[1728564727736,3.601,139.0,138.94,27.69]
[1728564727737,0.12502,139.01,138.94,27.69]
[1728564728035,0.12502,139.01,138.89,0.12502]
[1728564728036,0.12502,139.01,138.91,27.69]
[1728564728236,27.81502,139.01,138.91,27.69]
[1728564728538,3.6021,138.96,138.92,3.6028]
[1728564728935,3.6021,138.96,138.93,3.6027]
[1728564729737,27.81502,139.01,138.93,3.6027]
[1728564729940,3.6017,138.97,138.93,3.6025]
[1728564730336,27.81502,139.01,138.91,27.69]
[1728564730735,27.81502,139.01,138.89,0.12502]
[1728564731235,27.81502,139.01,138.89,27.81502]
[1728564731736,27.81502,139.01,138.94,3.6023]
[1728564731937,27.81502,139.01,138.89,27.81502]
[1728564732141,0.12502,139.01,138.91,27.69]
[1728564732340,0.12502,139.01,138.93,27.69]
[1728564732732,0.12502,139.01,138.95,3.602]
[1728564732733,3.72572,139.01,138.95,3.602]
[1728564732937,3.72572,139.01,138.93,27.69]
[1728564733138,0.12502,139.01,138.96,27.69]
[1728564733444,0.12502,139.01,139.0,3.6008]
[1728564733637,0.12502,139.01,138.96,27.69]
[1728564733833,0.12502,139.01,138.98,3.6012]
[1728564734237,0.12502,139.01,138.96,27.69]
[1728564734532,3.6019,138.96,138.89,0.12502]
[1728564734734,1.3773,139.0,138.91,27.69]
[1728564734938,1.3773,139.0,138.93,3.6025]
[1728564735235,3.6018,138.97,138.91,27.69]
[1728564735644,3.6018,138.97,138.93,3.6025]
[1728564735838,1.3773,139.0,138.93,3.6025]
[1728564736545,1.3773,139.0,138.94,27.69]
[1728564736740,0.12502,139.01,138.94,27.69]
[1728564736947,0.12502,139.01,138.94,31.2923]
[1728564737242,0.12502,139.01,138.89,1.46512]
[1728564737243,27.69,139.0,138.89,29.15512]
[1728564737450,3.6019,138.96,138.93,3.6025]
[1728564737646,27.69,139.0,138.89,29.15512]
[1728564737844,3.6023,138.95,138.89,29.15512]
[1728564738144,27.69,138.98,138.89,0.12502]
[1728564738344,29.068,138.98,138.89,0.12502]
[1728564738541,3.6025,138.94,138.91,3.6032]
[1728564738752,29.068,138.98,138.89,0.12502]
[1728564739040,1.378,138.98,138.89,0.12502]
[1728564739238,27.69,138.96,138.89,0.12502]
[1728564739433,1.3249,138.95,138.89,0.12502]
[1728564740840,3.6031,138.92,138.89,3.72862]
[1728564741040,1.3249,138.95,138.89,0.12502]
[1728564741547,3.6026,138.94,138.89,0.12502]
[1728564741747,1.3249,138.95,138.89,0.12502]
[1728564742350,3.6034,138.9,138.89,0.12502]
[1728564742650,27.69,138.94,138.81,2.8263]
[1728564742851,27.69,138.91,138.81,2.8263]
[1728564743057,27.69,138.91,138.86,3.6044]
[1728564743553,3.6042,138.87,138.81,2.8263]
[1728564744138,1.3891,138.89,138.8,27.69]
[1728564745342,29.0791,138.89,138.78,1.4235]
[1728564746349,29.0791,138.89,138.77,1.56302]
[1728564746350,3.605,138.84,138.77,1.56302]
[1728564746557,3.605,138.84,138.77,0.12502]
[1728564746744,3.6055,138.82,138.79,3.6061]
[1728564747052,3.6055,138.82,138.77,0.12502]
[1728564747053,27.69,138.87,138.77,0.12502]
[1728564747651,27.69,138.87,138.79,3.6061]
[1728564747843,1.317,138.86,138.77,0.12502]
[1728564748046,3.6051,138.84,138.81,3.6057]
[1728564748251,1.317,138.86,138.78,27.69]
[1728564748451,1.51412,138.89,138.8,27.69]
[1728564749353,3.6046,138.86,138.83,3.6051]
[1728564749739,1.51412,138.89,138.8,27.69]
[1728564749953,3.6045,138.86,138.84,3.6049]
[1728564750154,1.51412,138.89,138.84,3.6049]
[1728564750545,1.51412,138.89,138.8,27.69]
[1728564750747,29.20412,138.89,138.78,27.69]
[1728564750956,3.6055,138.83,138.78,27.69]
[1728564751147,29.20412,138.89,138.77,0.12502]
[1728564751346,27.69,138.87,138.79,3.6062]
[1728564751645,27.69,138.87,138.77,0.12502]
[1728564752052,3.6057,138.82,138.77,0.12502]
[1728564752648,3.6057,138.82,138.78,3.6063]
[1728564752852,3.606,138.81,138.78,3.6063]
[1728564753050,3.606,138.81,138.77,0.12502]
[1728564753252,3.605,138.84,138.77,0.12502]
[1728564753551,27.69,138.87,138.77,0.12502]
[1728564753758,27.69,138.87,138.8,3.606]
[1728564753953,27.69,138.87,138.77,0.12502]
[1728564754151,27.69,138.87,138.78,3.6064]
[1728564755051,3.6059,138.81,138.78,3.6064]
[1728564755257,27.69,138.85,138.77,0.12502]
[1728564755551,2.7683,138.84,138.77,0.12502]
[1728564755757,27.69,138.82,138.77,0.12502]
[1728564756259,3.6066,138.78,138.77,0.12502]
[1728564756860,3.6064,138.79,138.77,0.12502]
[1728564757247,1.346,138.83,138.77,0.12502]
[1728564757752,3.6059,138.81,138.78,3.6065]
[1728564758145,1.346,138.83,138.77,0.12502]
[1728564758346,3.6063,138.8,138.77,3.73172]
[1728564759144,3.6063,138.8,138.78,3.6065]
[1728564759350,3.6063,138.8,138.77,0.12502]
[1728564760042,3.6063,138.8,138.77,3.73172]
[1728564760642,3.6066,138.78,138.77,0.12502]
[1728564761147,1.346,138.83,138.77,0.12502]
[1728564763359,3.6066,138.78,138.77,0.12502]
[1728564763760,3.6076,138.74,138.72,3.608]
[1728564764558,3.6075,138.75,138.73,3.6078]
[1728564765062,3.6075,138.75,138.72,3.608]
[1728564767759,1.39,138.77,138.71,0.12502]
[1728564767961,1.39,138.77,138.72,3.608]
[1728564768454,3.6075,138.75,138.72,3.608]
[1728564768854,1.39,138.77,138.71,0.12502]
[1728564769054,3.6072,138.76,138.73,3.6077]
[1728564770569,3.6072,138.76,138.74,3.6075]
[1728564770869,1.39,138.77,138.71,0.12502]
[1728564771662,3.6071,138.76,138.71,0.12502]
[1728564772053,0.12502,138.83,138.71,27.81502]
[1728564772258,1.4068,138.82,138.71,27.81502]
[1728564772659,3.6064,138.79,138.76,3.6069]
[1728564773052,1.4068,138.82,138.74,27.69]
[1728564773256,1.4068,138.82,138.76,27.69]
[1728564773658,3.6061,138.8,138.78,3.6064]
[1728564773863,1.4068,138.82,138.74,27.69]
[1728564774060,1.4068,138.82,138.72,29.0785]
[1728564774259,29.0968,138.82,138.72,29.0785]
[1728564774567,29.0968,138.82,138.72,1.3885]
[1728564774867,29.0968,138.82,138.72,27.69]
[1728564775466,3.6069,138.77,138.74,3.6074]
[1728564775853,29.0968,138.82,138.74,3.6074]
[1728564777163,1.4068,138.82,138.71,27.81502]
[1728564777663,3.6066,138.78,138.76,3.6069]
[1728564779362,3.6064,138.79,138.76,3.6069]
[1728564779862,1.4068,138.82,138.76,3.6069]
[1728564780169,29.0968,138.82,138.71,27.81502]
[1728564780761,3.608,138.73,138.71,3.73332]
[1728564780957,3.608,138.73,138.71,0.12502]
[1728564781169,27.69,138.76,138.71,0.12502]
[1728564781363,3.6081,138.72,138.71,0.12502]
[1728564781566,3.6081,138.72,138.66,3.6095]
[1728564781777,27.69,138.73,138.65,0.12502]
[1728564781972,3.6096,138.67,138.65,0.12502]
[1728564782174,1.4523,138.75,138.65,0.12502]
[1728564782473,3.6094,138.67,138.65,0.12502]
[1728564782671,27.69,138.73,138.65,0.12502]
[1728564782867,3.6088,138.7,138.66,3.6095]
[1728564783065,27.69,138.73,138.65,0.12502]
[1728564783468,27.69,138.71,138.65,0.12502]